[Event "Early-Titled-Tuesday-Blitz-October-03-2023"]
[Site "Chess.com"]
[Date "2023.10.03"]
[Round "3"]
[White "Barmen_EV"]
[Black "nitpicker"]
[Result "1-0"]
[WhiteElo "2449"]
[BlackElo "2250"]
[TimeControl "180+1"]
[EndTime "8:25:50 PDT"]
[Termination "Barmen_EV won by resignation"]

1. e4 {[%clk 0:03:00.9]} 1... c5 {[%clk 0:02:58.9]} 2. c3 {[%clk 0:03:01.3]}
2... g6 {[%clk 0:02:57.2]} 3. d4 {[%clk 0:03:01.3]} 3... cxd4 {[%clk 0:02:57.4]}
4. cxd4 {[%clk 0:03:02.2]} 4... d5 {[%clk 0:02:57]} 5. exd5 {[%clk 0:03:02.1]}
5... Nf6 {[%clk 0:02:55.2]} 6. Nc3 {[%clk 0:03:00]} 6... Nxd5 {[%clk 0:02:54.3]}
7. Nf3 {[%clk 0:03:00.6]} 7... Bg4 {[%clk 0:02:40.1]} 8. Bc4 {[%clk 0:02:55.8]}
8... Nxc3 {[%clk 0:02:33.4]} 9. bxc3 {[%clk 0:02:55.5]} 9... Qc7 {[%clk
0:02:28.5]} 10. Bxf7+ {[%clk 0:02:53.3]} 10... Kxf7 {[%clk 0:02:19.9]} 11. Ng5+
{[%clk 0:02:53.3]} 11... Kg7 {[%clk 0:02:07.5]} 12. Qxg4 {[%clk 0:02:54.2]}
12... Qxc3+ {[%clk 0:02:05]} 13. Ke2 {[%clk 0:02:34.2]} 13... Qxa1 {[%clk
0:01:54.5]} 14. Qe6 {[%clk 0:02:32.2]} 14... Qxc1 {[%clk 0:00:39.1]} 15. Rxc1
{[%clk 0:02:28]} 15... Nc6 {[%clk 0:00:39.7]} 16. Rxc6 {[%clk 0:02:18.4]} 16...
bxc6 {[%clk 0:00:38.9]} 17. Qf7+ {[%clk 0:02:18.8]} 17... Kh6 {[%clk 0:00:37.7]}
18. Ne6 {[%clk 0:02:18.9]} 18... Rb8 {[%clk 0:00:21.4]} 19. Qf4+ {[%clk
0:02:18.7]} 1-0

[Event "Early-Titled-Tuesday-Blitz-October-03-2023"]
[Site "Chess.com"]
[Date "2023.10.03"]
[Round "3"]
[White "Fradi82"]
[Black "knightinshiningarmour16"]
[Result "1-0"]
[WhiteElo "2327"]
[BlackElo "2093"]
[TimeControl "180+1"]
[EndTime "8:25:52 PDT"]
[Termination "Fradi82 won by checkmate"]

1. e4 {[%clk 0:03:00.9]} 1... c6 {[%clk 0:02:54.6]} 2. d4 {[%clk 0:02:58.5]}
2... d5 {[%clk 0:02:50.2]} 3. e5 {[%clk 0:02:58]} 3... Bf5 {[%clk 0:02:43.3]} 4.
Bd3 {[%clk 0:02:57.5]} 4... Bxd3 {[%clk 0:02:39.4]} 5. Qxd3 {[%clk 0:02:58.4]}
5... e6 {[%clk 0:02:39.2]} 6. Ne2 {[%clk 0:02:55.3]} 6... c5 {[%clk 0:02:38.4]}
7. c3 {[%clk 0:02:54.3]} 7... cxd4 {[%clk 0:02:36.6]} 8. cxd4 {[%clk 0:02:53]}
8... Nc6 {[%clk 0:02:36.5]} 9. Nbc3 {[%clk 0:02:51.5]} 9... Bb4 {[%clk
0:02:30.1]} 10. O-O {[%clk 0:02:50.5]} 10... Nge7 {[%clk 0:02:27.9]} 11. f4
{[%clk 0:02:49.1]} 11... g6 {[%clk 0:02:27.3]} 12. Kh1 {[%clk 0:02:44.1]} 12...
O-O {[%clk 0:02:24.8]} 13. a3 {[%clk 0:02:43]} 13... Ba5 {[%clk 0:02:23.5]} 14.
b4 {[%clk 0:02:41.2]} 14... Bc7 {[%clk 0:02:22.3]} 15. Be3 {[%clk 0:02:37.2]}
15... Nf5 {[%clk 0:02:17.7]} 16. Bg1 {[%clk 0:02:35.2]} 16... h5 {[%clk
0:02:16.9]} 17. Ng3 {[%clk 0:02:26]} 17... Nxg3+ {[%clk 0:02:14.8]} 18. Qxg3
{[%clk 0:02:26]} 18... Bb6 {[%clk 0:02:10.3]} 19. Ne2 {[%clk 0:02:25]} 19... Ne7
{[%clk 0:02:09.4]} 20. Qd3 {[%clk 0:02:20.6]} 20... Nf5 {[%clk 0:01:57.7]} 21.
Ng3 {[%clk 0:02:20.4]} 21... Nh6 {[%clk 0:01:46.7]} 22. Be3 {[%clk 0:01:49.2]}
22... Rc8 {[%clk 0:01:42.8]} 23. f5 {[%clk 0:01:46.4]} 23... Nxf5 {[%clk
0:01:41.7]} 24. Nxf5 {[%clk 0:01:46.3]} 24... exf5 {[%clk 0:01:41.6]} 25. Bh6
{[%clk 0:01:45.9]} 25... Re8 {[%clk 0:01:41.1]} 26. Rxf5 {[%clk 0:01:34.9]}
26... gxf5 {[%clk 0:01:36.7]} 27. Qg3+ {[%clk 0:01:34.5]} 27... Kh7 {[%clk
0:01:29.9]} 28. Qg7# {[%clk 0:01:33.7]} 1-0

[Event "Early-Titled-Tuesday-Blitz-October-03-2023"]
[Site "Chess.com"]
[Date "2023.10.03"]
[Round "3"]
[White "Djager97"]
[Black "Jojo_898"]
[Result "1-0"]
[WhiteElo "2582"]
[BlackElo "2379"]
[TimeControl "180+1"]
[EndTime "8:26:09 PDT"]
[Termination "Djager97 won by resignation"]

1. e4 {[%clk 0:03:00.9]} 1... d6 {[%clk 0:02:58.5]} 2. d4 {[%clk 0:03:00.4]}
2... Nf6 {[%clk 0:02:56.9]} 3. Nc3 {[%clk 0:03:01]} 3... g6 {[%clk 0:02:56.6]}
4. Nf3 {[%clk 0:03:00.5]} 4... c6 {[%clk 0:02:56.7]} 5. Be3 {[%clk 0:02:59.8]}
5... b5 {[%clk 0:02:54.8]} 6. Bd3 {[%clk 0:02:45.4]} 6... Bg7 {[%clk 0:02:52.5]}
7. Qd2 {[%clk 0:02:45]} 7... h5 {[%clk 0:02:52.1]} 8. O-O-O {[%clk 0:02:31.1]}
8... b4 {[%clk 0:02:48.4]} 9. Ne2 {[%clk 0:02:30.8]} 9... Qa5 {[%clk 0:02:48.4]}
10. Kb1 {[%clk 0:02:29.8]} 10... Be6 {[%clk 0:02:48.2]} 11. Nc1 {[%clk
0:02:15.4]} 11... Nbd7 {[%clk 0:02:47.9]} 12. Nb3 {[%clk 0:02:08.7]} 12... Qa4
{[%clk 0:02:44.5]} 13. e5 {[%clk 0:02:00.3]} 13... dxe5 {[%clk 0:02:41.1]} 14.
dxe5 {[%clk 0:02:00.2]} 14... Nd5 {[%clk 0:02:41.7]} 15. Nfd4 {[%clk 0:01:49.6]}
15... Nxe3 {[%clk 0:02:28.5]} 16. Qxe3 {[%clk 0:01:38]} 16... Nxe5 {[%clk
0:02:10.2]} 17. Nxe6 {[%clk 0:01:37.5]} 17... fxe6 {[%clk 0:02:10.3]} 18. f4
{[%clk 0:01:17.9]} 18... Nxd3 {[%clk 0:02:07.1]} 19. Rxd3 {[%clk 0:01:10.8]}
19... e5 {[%clk 0:01:52.7]} 20. Nc5 {[%clk 0:00:52]} 20... O-O {[%clk
0:01:43.2]} 21. Nxa4 {[%clk 0:00:50.2]} 1-0

[Event "Early-Titled-Tuesday-Blitz-October-03-2023"]
[Site "Chess.com"]
[Date "2023.10.03"]
[Round "3"]
[White "B_nn_t"]
[Black "TregubovP"]
[Result "0-1"]
[WhiteElo "2406"]
[BlackElo "2615"]
[TimeControl "180+1"]
[EndTime "8:26:35 PDT"]
[Termination "TregubovP won by resignation"]

1. Nf3 {[%clk 0:03:00.9]} 1... d5 {[%clk 0:02:55.3]} 2. g3 {[%clk 0:02:59.7]}
2... Nf6 {[%clk 0:02:53.7]} 3. Bg2 {[%clk 0:02:59.5]} 3... c5 {[%clk 0:02:53.8]}
4. O-O {[%clk 0:02:58.9]} 4... Nc6 {[%clk 0:02:54.1]} 5. d4 {[%clk 0:02:57.1]}
5... cxd4 {[%clk 0:02:52.4]} 6. Nxd4 {[%clk 0:02:57.2]} 6... e5 {[%clk 0:02:53]}
7. Nxc6 {[%clk 0:02:56.4]} 7... bxc6 {[%clk 0:02:53.7]} 8. c4 {[%clk 0:02:57.2]}
8... Be6 {[%clk 0:02:54.1]} 9. Nc3 {[%clk 0:02:55.5]} 9... Rc8 {[%clk
0:02:46.7]} 10. cxd5 {[%clk 0:02:53.1]} 10... cxd5 {[%clk 0:02:46.7]} 11. Bg5
{[%clk 0:02:49.9]} 11... d4 {[%clk 0:02:46.5]} 12. Ne4 {[%clk 0:02:46.4]} 12...
Be7 {[%clk 0:02:45.3]} 13. Nxf6+ {[%clk 0:02:44.4]} 13... Bxf6 {[%clk
0:02:41.8]} 14. Qa4+ {[%clk 0:02:43.3]} 14... Qd7 {[%clk 0:02:36.9]} 15. Qxd7+
{[%clk 0:02:42.5]} 15... Kxd7 {[%clk 0:02:34.1]} 16. Bxf6 {[%clk 0:02:42.2]}
16... gxf6 {[%clk 0:02:34.6]} 17. Rfc1 {[%clk 0:02:39.1]} 17... Rxc1+ {[%clk
0:02:30.3]} 18. Rxc1 {[%clk 0:02:40]} 18... Rb8 {[%clk 0:02:08.3]} 19. b3 {[%clk
0:02:32.5]} 19... a5 {[%clk 0:02:02.2]} 20. Kf1 {[%clk 0:02:32.5]} 20... Rb6
{[%clk 0:01:56.6]} 21. Be4 {[%clk 0:02:18.9]} 21... f5 {[%clk 0:01:43]} 22. Bd3
{[%clk 0:02:18.9]} 22... Kd6 {[%clk 0:01:37.1]} 23. f4 {[%clk 0:02:08.4]} 23...
e4 {[%clk 0:01:34.1]} 24. Bc4 {[%clk 0:02:07.2]} 24... Rc6 {[%clk 0:01:22.1]}
25. Rd1 {[%clk 0:01:46.8]} 25... Bxc4 {[%clk 0:01:19.3]} 26. bxc4 {[%clk
0:01:46.9]} 26... Rxc4 {[%clk 0:01:18.7]} 27. Rb1 {[%clk 0:01:47.6]} 27... Rb4
{[%clk 0:01:18]} 28. Rc1 {[%clk 0:01:46.8]} 28... Rb2 {[%clk 0:01:14.6]} 29. Rc4
{[%clk 0:01:46.7]} 29... Rb4 {[%clk 0:01:13.1]} 30. Rc8 {[%clk 0:01:45.7]} 30...
Kd5 {[%clk 0:01:10.3]} 31. Rf8 {[%clk 0:01:43.7]} 31... Rb1+ {[%clk 0:01:08.8]}
32. Kf2 {[%clk 0:01:43.7]} 32... Rb2 {[%clk 0:01:09.4]} 33. Rxf7 {[%clk
0:01:42]} 33... d3 {[%clk 0:01:07.4]} 34. Rxf5+ {[%clk 0:01:42.2]} 34... Kd4
{[%clk 0:01:07.6]} 35. Rf8 {[%clk 0:01:40.2]} 35... Rxe2+ {[%clk 0:01:07.5]} 36.
Kf1 {[%clk 0:01:40.9]} 36... Rxa2 {[%clk 0:01:07.4]} 37. f5 {[%clk 0:01:39.5]}
37... Ke3 {[%clk 0:01:07.5]} 38. Rd8 {[%clk 0:01:39.5]} 38... Rf2+ {[%clk
0:01:06.2]} 39. Ke1 {[%clk 0:01:39.7]} 39... d2+ {[%clk 0:01:02.3]} 40. Kd1
{[%clk 0:01:39.6]} 40... Rf1+ {[%clk 0:01:02.4]} 41. Kc2 {[%clk 0:01:39.5]}
41... Rc1+ {[%clk 0:01:02.5]} 42. Kb2 {[%clk 0:01:38.4]} 42... d1=Q {[%clk
0:01:02.5]} 0-1

[Event "Early-Titled-Tuesday-Blitz-October-03-2023"]
[Site "Chess.com"]
[Date "2023.10.03"]
[Round "3"]
[White "WindWhistler11"]
[Black "IwkooO"]
[Result "0-1"]
[WhiteElo "2461"]
[BlackElo "2653"]
[TimeControl "180+1"]
[EndTime "8:26:43 PDT"]
[Termination "IwkooO won by resignation"]

1. Nf3 {[%clk 0:03:00.9]} 1... b6 {[%clk 0:02:58.3]} 2. c4 {[%clk 0:03:01.2]}
2... Bb7 {[%clk 0:02:57.8]} 3. e3 {[%clk 0:02:58.6]} 3... g6 {[%clk 0:02:56.6]}
4. b3 {[%clk 0:02:56.8]} 4... Bg7 {[%clk 0:02:56.8]} 5. d4 {[%clk 0:02:57.5]}
5... f5 {[%clk 0:02:56.2]} 6. Bb2 {[%clk 0:02:57.9]} 6... e6 {[%clk 0:02:56.5]}
7. Bd3 {[%clk 0:02:57.4]} 7... Nf6 {[%clk 0:02:56.9]} 8. Nc3 {[%clk 0:02:56.8]}
8... O-O {[%clk 0:02:57.5]} 9. Ne2 {[%clk 0:02:56.6]} 9... d6 {[%clk 0:02:57.3]}
10. Nf4 {[%clk 0:02:51.9]} 10... Qe7 {[%clk 0:02:57.3]} 11. d5 {[%clk 0:02:51]}
11... e5 {[%clk 0:02:50.7]} 12. Ne6 {[%clk 0:02:50.1]} 12... e4 {[%clk
0:02:47.5]} 13. Nxg7 {[%clk 0:02:37.9]} 13... Qxg7 {[%clk 0:02:41.7]} 14. Ng5
{[%clk 0:02:28.6]} 14... exd3 {[%clk 0:02:41.7]} 15. Ne6 {[%clk 0:02:28]} 15...
Qe7 {[%clk 0:02:42.1]} 16. Qxd3 {[%clk 0:02:07.2]} 16... Rf7 {[%clk 0:02:16.4]}
17. Qc3 {[%clk 0:02:03.3]} 17... Nbd7 {[%clk 0:02:04.5]} 18. h3 {[%clk
0:01:42.1]} 18... Nc5 {[%clk 0:02:01.3]} 19. Ng5 {[%clk 0:01:32.1]} 19... Nce4
{[%clk 0:01:59.2]} 20. Nxe4 {[%clk 0:01:30]} 20... Qxe4 {[%clk 0:01:59.8]} 21.
O-O-O {[%clk 0:01:29.6]} 21... Re8 {[%clk 0:01:58.4]} 22. g4 {[%clk 0:01:28.4]}
22... fxg4 {[%clk 0:01:44.2]} 23. hxg4 {[%clk 0:01:28]} 23... Qxg4 {[%clk
0:01:44.5]} 24. Rdg1 {[%clk 0:01:18.1]} 24... Qf5 {[%clk 0:01:40.8]} 25. f4
{[%clk 0:01:07.8]} 25... Qe4 {[%clk 0:01:28.4]} 26. Rh3 {[%clk 0:01:00.6]} 26...
Bc8 {[%clk 0:01:24.9]} 27. Rhg3 {[%clk 0:00:48.9]} 27... Bf5 {[%clk 0:01:23.9]}
28. Rg5 {[%clk 0:00:42.5]} 28... Qb1+ {[%clk 0:01:23.5]} 29. Kd2 {[%clk
0:00:42.5]} 29... Ne4+ {[%clk 0:01:24.4]} 0-1

[Event "Early-Titled-Tuesday-Blitz-October-03-2023"]
[Site "Chess.com"]
[Date "2023.10.03"]
[Round "3"]
[White "NovozhilovSemen"]
[Black "Kotofeyca"]
[Result "1-0"]
[WhiteElo "2589"]
[BlackElo "2384"]
[TimeControl "180+1"]
[EndTime "8:26:54 PDT"]
[Termination "NovozhilovSemen won by resignation"]

1. d4 {[%clk 0:03:00.9]} 1... d5 {[%clk 0:02:23.2]} 2. c4 {[%clk 0:02:59.8]}
2... c6 {[%clk 0:02:23.6]} 3. cxd5 {[%clk 0:03:00.2]} 3... cxd5 {[%clk
0:02:22.9]} 4. Bg5 {[%clk 0:03:00.5]} 4... h6 {[%clk 0:02:22.4]} 5. Bh4 {[%clk
0:03:00.6]} 5... Qb6 {[%clk 0:02:21.6]} 6. Qd2 {[%clk 0:02:59.8]} 6... Bf5
{[%clk 0:02:17.5]} 7. Nc3 {[%clk 0:02:59]} 7... e6 {[%clk 0:02:17.8]} 8. e3
{[%clk 0:02:58.7]} 8... Nc6 {[%clk 0:02:15.5]} 9. Nf3 {[%clk 0:02:57.8]} 9...
Be7 {[%clk 0:02:15.4]} 10. Bxe7 {[%clk 0:02:56]} 10... Ngxe7 {[%clk 0:02:16.3]}
11. Be2 {[%clk 0:02:56.2]} 11... O-O {[%clk 0:02:16.2]} 12. O-O {[%clk
0:02:56.6]} 12... Rfc8 {[%clk 0:02:15.4]} 13. Rfc1 {[%clk 0:02:56]} 13... Na5
{[%clk 0:01:56]} 14. b3 {[%clk 0:02:42.8]} 14... Qb4 {[%clk 0:01:39.7]} 15. Bd3
{[%clk 0:02:33.9]} 15... Nac6 {[%clk 0:01:26]} 16. a3 {[%clk 0:02:28.2]} 16...
Qd6 {[%clk 0:01:16.4]} 17. b4 {[%clk 0:02:26.3]} 17... Bxd3 {[%clk 0:00:53]} 18.
Qxd3 {[%clk 0:02:27.2]} 18... Qd8 {[%clk 0:00:53.5]} 19. Rc2 {[%clk 0:02:21.9]}
19... Nf5 {[%clk 0:00:52.1]} 20. Rac1 {[%clk 0:02:18.1]} 20... Nd6 {[%clk
0:00:51.8]} 21. Nd2 {[%clk 0:02:18.7]} 21... b5 {[%clk 0:00:44.2]} 22. Nxb5
{[%clk 0:02:13.4]} 22... Ne7 {[%clk 0:00:19.9]} 23. Nxd6 {[%clk 0:02:07]} 23...
Qxd6 {[%clk 0:00:20.8]} 24. Rc5 {[%clk 0:02:06.4]} 24... Rc6 {[%clk 0:00:19.1]}
25. Rxc6 {[%clk 0:01:55.8]} 25... Nxc6 {[%clk 0:00:20]} 26. Qa6 {[%clk
0:01:54.5]} 26... Nxd4 {[%clk 0:00:08.6]} 27. Qxd6 {[%clk 0:01:52.4]} 27... Ne2+
{[%clk 0:00:08.8]} 28. Kf1 {[%clk 0:01:52.6]} 28... Nxc1 {[%clk 0:00:09.7]} 29.
Qc6 {[%clk 0:01:52.4]} 29... Rb8 {[%clk 0:00:09.5]} 30. Qxc1 {[%clk 0:01:52.2]}
1-0

[Event "Early-Titled-Tuesday-Blitz-October-03-2023"]
[Site "Chess.com"]
[Date "2023.10.03"]
[Round "3"]
[White "sofaceindisguise"]
[Black "grandemestregringo"]
[Result "1-0"]
[WhiteElo "2782"]
[BlackElo "2541"]
[TimeControl "180+1"]
[EndTime "8:26:56 PDT"]
[Termination "sofaceindisguise won by resignation"]

1. d4 {[%clk 0:03:00.9]} 1... f5 {[%clk 0:02:47.8]} 2. g3 {[%clk 0:03:00.1]}
2... Nf6 {[%clk 0:02:46]} 3. Bg2 {[%clk 0:03:00.6]} 3... g6 {[%clk 0:02:45.6]}
4. Nh3 {[%clk 0:03:00.6]} 4... Bg7 {[%clk 0:02:45]} 5. O-O {[%clk 0:03:00.6]}
5... O-O {[%clk 0:02:44.7]} 6. Nf4 {[%clk 0:03:00.7]} 6... e6 {[%clk 0:02:38.7]}
7. c4 {[%clk 0:03:00.3]} 7... d6 {[%clk 0:02:29.6]} 8. Qb3 {[%clk 0:02:58.3]}
8... Nc6 {[%clk 0:02:26.8]} 9. Rd1 {[%clk 0:02:54.3]} 9... Qe8 {[%clk
0:02:19.5]} 10. d5 {[%clk 0:02:50.8]} 10... exd5 {[%clk 0:02:01.6]} 11. cxd5
{[%clk 0:02:51.1]} 11... Ne5 {[%clk 0:02:01.7]} 12. Nc3 {[%clk 0:02:50.7]} 12...
g5 {[%clk 0:01:50.7]} 13. Ne6 {[%clk 0:02:50.6]} 13... f4 {[%clk 0:01:43.8]} 14.
Nb5 {[%clk 0:02:30.6]} 14... Qh5 {[%clk 0:01:39.4]} 15. gxf4 {[%clk 0:02:16.7]}
15... gxf4 {[%clk 0:01:25.2]} 16. Bxf4 {[%clk 0:02:15]} 16... Nfg4 {[%clk
0:01:22.6]} 17. Nxf8 {[%clk 0:02:07]} 17... Bxf8 {[%clk 0:01:11.6]} 18. Nxc7
{[%clk 0:02:02.4]} 18... Rb8 {[%clk 0:00:53.4]} 19. Ne6 {[%clk 0:01:58.8]} 19...
Bh6 {[%clk 0:00:48.8]} 20. Qg3 {[%clk 0:01:52.9]} 20... Bxe6 {[%clk 0:00:42]}
21. Bxh6 {[%clk 0:01:45.7]} 21... Bf5 {[%clk 0:00:24]} 22. Bf4 {[%clk
0:01:43.6]} 22... Kh8 {[%clk 0:00:21.6]} 23. h3 {[%clk 0:01:42.8]} 23... Nf6
{[%clk 0:00:16.1]} 24. Bxe5 {[%clk 0:01:41.1]} 24... dxe5 {[%clk 0:00:16.3]} 25.
Qxe5 {[%clk 0:01:41.7]} 25... Qg6 {[%clk 0:00:14.9]} 26. Qxb8+ {[%clk
0:01:41.2]} 1-0

[Event "Early-Titled-Tuesday-Blitz-October-03-2023"]
[Site "Chess.com"]
[Date "2023.10.03"]
[Round "3"]
[White "ivana_999"]
[Black "SashaKuzhilniy"]
[Result "1-0"]
[WhiteElo "2056"]
[BlackElo "2610"]
[TimeControl "180+1"]
[EndTime "8:26:58 PDT"]
[Termination "ivana_999 won by resignation"]

1. d4 {[%clk 0:02:59.7]} 1... g6 {[%clk 0:03:00.6]} 2. c4 {[%clk 0:02:59.7]}
2... Bg7 {[%clk 0:03:01.2]} 3. Nc3 {[%clk 0:03:00.2]} 3... d6 {[%clk 0:03:01.7]}
4. e4 {[%clk 0:03:00.6]} 4... Nf6 {[%clk 0:02:58.3]} 5. f4 {[%clk 0:02:59.8]}
5... O-O {[%clk 0:02:57.5]} 6. Nf3 {[%clk 0:02:59.9]} 6... c5 {[%clk 0:02:56]}
7. d5 {[%clk 0:03:00.3]} 7... e6 {[%clk 0:02:53.9]} 8. Be2 {[%clk 0:03:00.8]}
8... exd5 {[%clk 0:02:54.1]} 9. cxd5 {[%clk 0:03:01.7]} 9... Re8 {[%clk
0:02:53]} 10. e5 {[%clk 0:03:02.3]} 10... dxe5 {[%clk 0:02:50.2]} 11. fxe5
{[%clk 0:03:03.2]} 11... Ng4 {[%clk 0:02:50.5]} 12. e6 {[%clk 0:03:03.7]} 12...
fxe6 {[%clk 0:02:44.8]} 13. d6 {[%clk 0:03:04.1]} 13... Qb6 {[%clk 0:02:39]} 14.
h3 {[%clk 0:02:55.6]} 14... Ne5 {[%clk 0:02:34.6]} 15. O-O {[%clk 0:02:45.7]}
15... Bd7 {[%clk 0:02:13]} 16. Ne4 {[%clk 0:02:29.5]} 16... c4+ {[%clk 0:02:05]}
17. Kh1 {[%clk 0:02:27.5]} 17... Nd3 {[%clk 0:02:05.5]} 18. Bxd3 {[%clk
0:02:23.8]} 18... cxd3 {[%clk 0:02:06.4]} 19. Nfg5 {[%clk 0:02:17.8]} 19... Qd4
{[%clk 0:01:49.3]} 20. Qf3 {[%clk 0:01:54.4]} 20... Rf8 {[%clk 0:01:45.5]} 21.
Qxf8+ {[%clk 0:01:42.7]} 21... Bxf8 {[%clk 0:01:42.5]} 22. Nf6+ {[%clk
0:01:30.2]} 22... Kh8 {[%clk 0:01:05.5]} 23. Nf7+ {[%clk 0:01:09.2]} 23... Kg7
{[%clk 0:01:05.8]} 24. Bh6+ {[%clk 0:01:08.3]} 24... Kxf7 {[%clk 0:01:04.6]} 25.
Nd5+ {[%clk 0:00:54.9]} 1-0

[Event "Early-Titled-Tuesday-Blitz-October-03-2023"]
[Site "Chess.com"]
[Date "2023.10.03"]
[Round "3"]
[White "Real_taiatai"]
[Black "chito89"]
[Result "0-1"]
[WhiteElo "2562"]
[BlackElo "2810"]
[TimeControl "180+1"]
[EndTime "8:27:07 PDT"]
[Termination "chito89 won by resignation"]

1. d4 {[%clk 0:03:00.9]} 1... Nf6 {[%clk 0:02:37.8]} 2. Nf3 {[%clk 0:03:00.2]}
2... d6 {[%clk 0:02:38.2]} 3. Nc3 {[%clk 0:02:59]} 3... Nbd7 {[%clk 0:02:35.9]}
4. e4 {[%clk 0:02:57.7]} 4... e5 {[%clk 0:02:36.5]} 5. Bc4 {[%clk 0:02:31.5]}
5... Be7 {[%clk 0:02:35.6]} 6. O-O {[%clk 0:02:30.2]} 6... O-O {[%clk
0:02:34.6]} 7. Re1 {[%clk 0:02:25.5]} 7... a6 {[%clk 0:02:34.4]} 8. a4 {[%clk
0:02:15.1]} 8... b6 {[%clk 0:02:34.6]} 9. b3 {[%clk 0:02:13.9]} 9... Bb7 {[%clk
0:02:32.7]} 10. Ba3 {[%clk 0:02:08.6]} 10... c6 {[%clk 0:02:26.7]} 11. Bf1
{[%clk 0:02:03.6]} 11... b5 {[%clk 0:02:23.1]} 12. Qe2 {[%clk 0:01:35.4]} 12...
exd4 {[%clk 0:02:18.7]} 13. axb5 {[%clk 0:01:14.5]} 13... dxc3 {[%clk
0:02:14.5]} 14. bxc6 {[%clk 0:01:15.4]} 14... Bxc6 {[%clk 0:02:14.5]} 15. Qc4
{[%clk 0:01:11.1]} 15... Rc8 {[%clk 0:02:04]} 16. Qxa6 {[%clk 0:01:09.4]} 16...
Bxe4 {[%clk 0:02:02.9]} 17. Bxd6 {[%clk 0:00:57.9]} 17... Bxd6 {[%clk
0:02:00.8]} 18. Qxd6 {[%clk 0:00:58.8]} 18... Bxc2 {[%clk 0:02:00.3]} 19. Bc4
{[%clk 0:00:59]} 19... Nb6 {[%clk 0:01:57.4]} 20. Qb4 {[%clk 0:00:58.6]} 20...
Nxc4 {[%clk 0:01:56]} 21. bxc4 {[%clk 0:00:58.6]} 21... Bd3 {[%clk 0:01:46.7]}
22. Qxc3 {[%clk 0:00:58.2]} 22... Bxc4 {[%clk 0:01:46.1]} 23. Rad1 {[%clk
0:00:56.5]} 23... Be6 {[%clk 0:01:38.6]} 24. Qe5 {[%clk 0:00:48.9]} 24... Qc7
{[%clk 0:01:38.5]} 25. Qe3 {[%clk 0:00:40.6]} 25... h6 {[%clk 0:01:38.4]} 26. h3
{[%clk 0:00:40.3]} 26... Rfe8 {[%clk 0:01:36.4]} 27. Qa3 {[%clk 0:00:39.8]}
27... Bd5 {[%clk 0:01:33]} 28. Rc1 {[%clk 0:00:37]} 28... Qf4 {[%clk 0:01:32.4]}
29. Rxc8 {[%clk 0:00:35.3]} 29... Rxc8 {[%clk 0:01:32.1]} 30. Ne5 {[%clk
0:00:33.7]} 30... Ne4 {[%clk 0:01:28.4]} 31. Qa7 {[%clk 0:00:28.1]} 31... Qxe5
{[%clk 0:01:26.6]} 0-1

[Event "Early-Titled-Tuesday-Blitz-October-03-2023"]
[Site "Chess.com"]
[Date "2023.10.03"]
[Round "3"]
[White "ajedrezhoy"]
[Black "swayamsm"]
[Result "0-1"]
[WhiteElo "2368"]
[BlackElo "2589"]
[TimeControl "180+1"]
[EndTime "8:27:18 PDT"]
[Termination "swayamsm won by resignation"]

1. c4 {[%clk 0:03:00.9]} 1... e6 {[%clk 0:03:00.9]} 2. Nf3 {[%clk 0:02:59.6]}
2... f5 {[%clk 0:03:00.6]} 3. g3 {[%clk 0:02:56.9]} 3... Nf6 {[%clk 0:03:00.8]}
4. Bg2 {[%clk 0:02:56.9]} 4... b6 {[%clk 0:02:53.5]} 5. O-O {[%clk 0:02:55.9]}
5... Bb7 {[%clk 0:02:53.5]} 6. d3 {[%clk 0:02:56.1]} 6... Be7 {[%clk 0:02:52]}
7. Nc3 {[%clk 0:02:56.2]} 7... O-O {[%clk 0:02:51.8]} 8. Rb1 {[%clk 0:02:49.7]}
8... a5 {[%clk 0:02:51]} 9. b3 {[%clk 0:02:49.2]} 9... Qe8 {[%clk 0:02:50]} 10.
e3 {[%clk 0:02:36.1]} 10... Na6 {[%clk 0:02:48.5]} 11. a3 {[%clk 0:02:34.7]}
11... Rb8 {[%clk 0:02:45.2]} 12. Bb2 {[%clk 0:02:34.1]} 12... Qh5 {[%clk
0:02:04.8]} 13. Nd4 {[%clk 0:02:15.3]} 13... Qh6 {[%clk 0:02:01.1]} 14. Bc1
{[%clk 0:02:09.8]} 14... Ng4 {[%clk 0:01:54.9]} 15. h3 {[%clk 0:02:08.4]} 15...
Nf6 {[%clk 0:01:51.8]} 16. e4 {[%clk 0:02:00.9]} 16... Qg6 {[%clk 0:01:46.9]}
17. e5 {[%clk 0:01:59.5]} 17... Nh5 {[%clk 0:01:36.1]} 18. Kh2 {[%clk
0:01:41.6]} 18... Bxg2 {[%clk 0:01:26]} 19. Kxg2 {[%clk 0:01:41.1]} 19... f4
{[%clk 0:01:26.9]} 20. g4 {[%clk 0:01:37.6]} 20... f3+ {[%clk 0:01:19.8]} 21.
Nxf3 {[%clk 0:01:36.8]} 21... Nf4+ {[%clk 0:01:20.7]} 22. Bxf4 {[%clk
0:01:30.7]} 22... Rxf4 {[%clk 0:01:21.6]} 23. Ne2 {[%clk 0:01:27.8]} 23... Rf7
{[%clk 0:01:14.2]} 24. Ng3 {[%clk 0:01:26.6]} 24... Rbf8 {[%clk 0:01:11.6]} 25.
Nh2 {[%clk 0:01:26.3]} 25... Bxa3 {[%clk 0:01:10.4]} 26. d4 {[%clk 0:01:15.5]}
26... Be7 {[%clk 0:01:07]} 27. Qe2 {[%clk 0:01:14.6]} 27... Bh4 {[%clk
0:01:04.5]} 28. Qe4 {[%clk 0:01:09]} 28... Rxf2+ {[%clk 0:00:57.9]} 29. Rxf2
{[%clk 0:01:01.7]} 29... Rxf2+ {[%clk 0:00:58.8]} 30. Kg1 {[%clk 0:01:01.7]}
30... Bxg3 {[%clk 0:00:55.6]} 31. Qxg6 {[%clk 0:00:57.5]} 31... hxg6 {[%clk
0:00:56.5]} 32. Nf1 {[%clk 0:00:57.1]} 32... Bh4 {[%clk 0:00:56.1]} 0-1